[Event "*** Titled Tuesday Blitz"]
[Site "Chess.com"]
[Date "2019.08.06"]
[Round "6"]
[White "adriangschnitzer"]
[Black "Thee-Chessboy"]
[Result "1-0"]
[WhiteElo "2564"]
[BlackElo "2407"]
[TimeControl "180+2"]
[EndTime "14:23:55 PDT"]
[Termination "adriangschnitzer won by resignation"]

1. d4 {[%clk 0:03:01.9]} 1... g6 {[%clk 0:02:59.7]} 2. g3 {[%clk 0:03:02]} 2...
Bg7 {[%clk 0:03:00.2]} 3. Bg2 {[%clk 0:03:02.7]} 3... d6 {[%clk 0:03:00.4]} 4.
e4 {[%clk 0:03:03.4]} 4... Nd7 {[%clk 0:03:00.5]} 5. Nc3 {[%clk 0:03:03]} 5...
e5 {[%clk 0:03:01]} 6. Nge2 {[%clk 0:03:03.5]} 6... Ne7 {[%clk 0:02:52.1]} 7.
O-O {[%clk 0:03:01.3]} 7... O-O {[%clk 0:02:51]} 8. h3 {[%clk 0:02:59.2]} 8...
Nc6 {[%clk 0:02:30.6]} 9. Be3 {[%clk 0:02:57.9]} 9... Nb6 {[%clk 0:02:29.1]} 10.
b3 {[%clk 0:02:53]} 10... f5 {[%clk 0:02:21.9]} 11. d5 {[%clk 0:02:29.4]} 11...
Ne7 {[%clk 0:02:19.7]} 12. Qd2 {[%clk 0:02:29.2]} 12... Nd7 {[%clk 0:02:06.3]}
13. f4 {[%clk 0:02:24.9]} 13... Nc5 {[%clk 0:01:56.8]} 14. Kh2 {[%clk
0:02:12.4]} 14... fxe4 {[%clk 0:01:53.9]} 15. Nxe4 {[%clk 0:02:11.4]} 15... Nxe4
{[%clk 0:01:54.2]} 16. Bxe4 {[%clk 0:02:11.9]} 16... Nf5 {[%clk 0:01:48.3]} 17.
Bxf5 {[%clk 0:01:58.6]} 17... Bxf5 {[%clk 0:01:45]} 18. Rae1 {[%clk 0:01:59.4]}
18... a5 {[%clk 0:01:24.2]} 19. g4 {[%clk 0:01:57.6]} 19... Bd7 {[%clk
0:01:23.4]} 20. Ng3 {[%clk 0:01:55.8]} 20... exf4 {[%clk 0:01:15]} 21. Bxf4
{[%clk 0:01:54.3]} 21... Qf6 {[%clk 0:00:45.9]} 22. Be5 {[%clk 0:01:44.3]} 22...
Qxe5 {[%clk 0:00:36.9]} 23. Rxe5 {[%clk 0:01:42.9]} 23... Bxe5 {[%clk
0:00:37.1]} 24. Kg2 {[%clk 0:01:37.5]} 24... Rxf1 {[%clk 0:00:34.2]} 25. Nxf1
{[%clk 0:01:39.4]} 25... Rf8 {[%clk 0:00:34.7]} 26. Qxa5 {[%clk 0:01:36]} 26...
b6 {[%clk 0:00:32.5]} 27. Qa7 {[%clk 0:01:31.8]} 27... Rf7 {[%clk 0:00:21.1]}
28. Qxc7 {[%clk 0:01:27]} 28... Bxg4 {[%clk 0:00:21.5]} 29. Qd8+ {[%clk
0:01:13.5]} 29... Rf8 {[%clk 0:00:21.8]} 30. Qxb6 {[%clk 0:00:54.7]} 30... Bf3+
{[%clk 0:00:21.6]} 31. Kg1 {[%clk 0:00:54.4]} 31... Bxd5 {[%clk 0:00:23.5]} 32.
Ne3 {[%clk 0:00:52.2]} 32... Be4 {[%clk 0:00:23.8]} 33. Ng4 {[%clk 0:00:42.3]}
33... Bf4 {[%clk 0:00:21.8]} 34. Qc7 {[%clk 0:00:36.7]} 34... h5 {[%clk
0:00:20.7]} 35. Qe7 {[%clk 0:00:19.5]} 35... hxg4 {[%clk 0:00:17.7]} 36. Qxe4
{[%clk 0:00:19.3]} 36... Kg7 {[%clk 0:00:15.4]} 37. hxg4 {[%clk 0:00:18.9]}
37... Be5 {[%clk 0:00:16.5]} 38. a4 {[%clk 0:00:18.1]} 38... Rf4 {[%clk
0:00:16.7]} 39. Qe2 {[%clk 0:00:17.4]} 39... Kh6 {[%clk 0:00:16.7]} 40. a5
{[%clk 0:00:17.5]} 40... Kg5 {[%clk 0:00:18.2]} 41. a6 {[%clk 0:00:18.2]} 41...
Rxg4+ {[%clk 0:00:19.6]} 42. Kf1 {[%clk 0:00:16.4]} 42... Rf4+ {[%clk
0:00:19.4]} 43. Kg2 {[%clk 0:00:16.7]} 43... Bd4 {[%clk 0:00:20.3]} 44. Qe7+
{[%clk 0:00:15.4]} 44... Bf6 {[%clk 0:00:19.9]} 45. Qe3 {[%clk 0:00:13.9]} 45...
Bd4 {[%clk 0:00:19.9]} 46. Qxd4 {[%clk 0:00:13.2]} 46... Rxd4 {[%clk 0:00:20.2]}
47. a7 {[%clk 0:00:14.6]} 47... Rd2+ {[%clk 0:00:21.6]} 48. Kf3 {[%clk 0:00:14]}
48... Rxc2 {[%clk 0:00:20.6]} 49. a8=Q {[%clk 0:00:14.1]} 49... Rc3+ {[%clk
0:00:22]} 50. Ke2 {[%clk 0:00:14.8]} 50... Rxb3 {[%clk 0:00:23.5]} 51. Qd5+
{[%clk 0:00:13.8]} 1-0

[Event "*** Titled Tuesday Blitz"]
[Site "Chess.com"]
[Date "2019.08.06"]
[Round "6"]
[White "FrenchMonster2002"]
[Black "Olga_Girya"]
[Result "1-0"]
[WhiteElo "2516"]
[BlackElo "2489"]
[TimeControl "180+2"]
[EndTime "14:23:56 PDT"]
[Termination "FrenchMonster2002 won by resignation"]

1. e4 {[%clk 0:03:01.9]} 1... c6 {[%clk 0:01:34]} 2. Nc3 {[%clk 0:03:01.4]} 2...
d5 {[%clk 0:01:34.9]} 3. Nf3 {[%clk 0:03:02.5]} 3... dxe4 {[%clk 0:01:35.2]} 4.
Nxe4 {[%clk 0:03:02.9]} 4... Nf6 {[%clk 0:01:36.9]} 5. Qe2 {[%clk 0:03:04.6]}
5... Nxe4 {[%clk 0:01:37.5]} 6. Qxe4 {[%clk 0:03:06.5]} 6... Nd7 {[%clk
0:01:38.9]} 7. Bc4 {[%clk 0:03:07.3]} 7... Nf6 {[%clk 0:01:40.4]} 8. Ne5 {[%clk
0:03:09]} 8... e6 {[%clk 0:01:42]} 9. Qe2 {[%clk 0:03:09.4]} 9... b5 {[%clk
0:01:43.2]} 10. Nxc6 {[%clk 0:02:59.2]} 10... Qd7 {[%clk 0:01:40.8]} 11. Bxb5
{[%clk 0:02:58.9]} 11... a6 {[%clk 0:01:42.4]} 12. Ba4 {[%clk 0:02:21.9]} 12...
Bb7 {[%clk 0:01:39.4]} 13. Qc4 {[%clk 0:01:42.2]} 13... Rc8 {[%clk 0:01:31.2]}
14. Na5 {[%clk 0:01:36.3]} 14... Rxc4 {[%clk 0:01:29]} 15. Bxd7+ {[%clk
0:01:36.4]} 15... Nxd7 {[%clk 0:01:24.2]} 16. Nxc4 {[%clk 0:01:38.3]} 16... Bxg2
{[%clk 0:01:25.3]} 17. Rg1 {[%clk 0:01:35.9]} 17... Bd5 {[%clk 0:01:26.6]} 18.
Ne3 {[%clk 0:01:29.3]} 18... Bb7 {[%clk 0:01:23.2]} 19. b3 {[%clk 0:01:24.9]}
19... Ne5 {[%clk 0:01:23]} 20. Ke2 {[%clk 0:00:50]} 20... Bf3+ {[%clk
0:01:18.8]} 21. Kf1 {[%clk 0:00:48.5]} 21... f6 {[%clk 0:01:07.8]} 22. Bb2
{[%clk 0:00:36.9]} 22... Ng6 {[%clk 0:01:08.2]} 23. Rg3 {[%clk 0:00:35.2]} 23...
Bb7 {[%clk 0:01:08.6]} 24. Nc4 {[%clk 0:00:31.1]} 24... Kf7 {[%clk 0:01:05]} 25.
Re1 {[%clk 0:00:27.2]} 25... Be7 {[%clk 0:01:01.3]} 26. Rd3 {[%clk 0:00:22.1]}
26... Bd5 {[%clk 0:00:46.4]} 27. Ne3 {[%clk 0:00:18.4]} 27... Bc6 {[%clk
0:00:33.7]} 28. a4 {[%clk 0:00:17.6]} 28... Bb4 {[%clk 0:00:20.8]} 29. Nc4
{[%clk 0:00:13.8]} 29... Nf4 {[%clk 0:00:20.3]} 30. Rg3 {[%clk 0:00:11.3]} 30...
Rd8 {[%clk 0:00:19.3]} 31. Bc3 {[%clk 0:00:07.6]} 31... Bc5 {[%clk 0:00:19.8]}
32. b4 {[%clk 0:00:07.1]} 32... Ba7 {[%clk 0:00:20.4]} 33. Nb2 {[%clk
0:00:06.5]} 33... Bd5 {[%clk 0:00:19.9]} 34. d3 {[%clk 0:00:06.1]} 34... g5
{[%clk 0:00:20.3]} 35. Bd2 {[%clk 0:00:06.1]} 35... Ng6 {[%clk 0:00:20.6]} 36.
c4 {[%clk 0:00:05.4]} 36... Ba8 {[%clk 0:00:21.7]} 37. Be3 {[%clk 0:00:05.1]}
37... Bb8 {[%clk 0:00:21.8]} 38. b5 {[%clk 0:00:03.6]} 38... Bxg3 {[%clk
0:00:21.8]} 39. hxg3 {[%clk 0:00:05.5]} 39... axb5 {[%clk 0:00:22.7]} 40. axb5
{[%clk 0:00:05.4]} 40... Ne5 {[%clk 0:00:23.9]} 41. c5 {[%clk 0:00:05.3]} 41...
Nxd3 {[%clk 0:00:21.3]} 42. Nxd3 {[%clk 0:00:03.6]} 42... Rxd3 {[%clk
0:00:22.2]} 43. c6 {[%clk 0:00:04]} 43... Rb3 {[%clk 0:00:22.2]} 44. Ra1 {[%clk
0:00:03.9]} 44... Bxc6 {[%clk 0:00:15.6]} 45. bxc6 {[%clk 0:00:04.8]} 45... Rc3
{[%clk 0:00:17.5]} 46. Ra7+ {[%clk 0:00:04.9]} 46... Kg6 {[%clk 0:00:19]} 47. c7
{[%clk 0:00:06]} 47... h5 {[%clk 0:00:17.9]} 48. Bb6 {[%clk 0:00:07.3]} 48... h4
{[%clk 0:00:16.5]} 49. gxh4 {[%clk 0:00:08.9]} 49... gxh4 {[%clk 0:00:16.6]} 50.
Ra8 {[%clk 0:00:10.5]} 1-0

[Event "*** Titled Tuesday Blitz"]
[Site "Chess.com"]
[Date "2019.08.06"]
[Round "6"]
[White "Jbd735"]
[Black "Schachspielerr"]
[Result "1/2-1/2"]
[WhiteElo "2454"]
[BlackElo "2647"]
[TimeControl "180+2"]
[EndTime "14:23:58 PDT"]
[Termination "Game drawn - insufficient material"]

1. e4 {[%clk 0:03:01.9]} 1... c5 {[%clk 0:03:00.6]} 2. Nf3 {[%clk 0:03:02.2]}
2... Nc6 {[%clk 0:03:00.6]} 3. d4 {[%clk 0:03:01.4]} 3... cxd4 {[%clk
0:03:01.9]} 4. Nxd4 {[%clk 0:03:03]} 4... Nf6 {[%clk 0:03:03.4]} 5. Nc3 {[%clk
0:03:02.9]} 5... d6 {[%clk 0:03:04.9]} 6. Bc4 {[%clk 0:02:56.6]} 6... g6 {[%clk
0:03:04]} 7. O-O {[%clk 0:02:56.9]} 7... Bg7 {[%clk 0:03:05.1]} 8. Nde2 {[%clk
0:02:26.9]} 8... O-O {[%clk 0:03:05.3]} 9. a4 {[%clk 0:02:17.6]} 9... Bd7 {[%clk
0:03:00.5]} 10. Be3 {[%clk 0:02:11.5]} 10... a6 {[%clk 0:03:00.3]} 11. f3 {[%clk
0:02:07.6]} 11... Ne5 {[%clk 0:02:40.1]} 12. Bb3 {[%clk 0:02:06.6]} 12... Rc8
{[%clk 0:02:41.2]} 13. a5 {[%clk 0:01:50]} 13... Nc4 {[%clk 0:02:41.1]} 14. Bxc4
{[%clk 0:01:50.8]} 14... Rxc4 {[%clk 0:02:43]} 15. b3 {[%clk 0:01:29.1]} 15...
Rc6 {[%clk 0:02:34.6]} 16. Nd5 {[%clk 0:01:21.4]} 16... e6 {[%clk 0:01:45.4]}
17. Nb6 {[%clk 0:00:32.7]} 17... d5 {[%clk 0:00:44.5]} 18. Nd4 {[%clk
0:00:28.7]} 18... dxe4 {[%clk 0:00:35]} 19. Nxc6 {[%clk 0:00:27.7]} 19... Bxc6
{[%clk 0:00:36.9]} 20. Qxd8 {[%clk 0:00:22.1]} 20... Rxd8 {[%clk 0:00:38.8]} 21.
Rad1 {[%clk 0:00:21.8]} 21... Re8 {[%clk 0:00:40.2]} 22. Kf2 {[%clk 0:00:17.1]}
22... exf3 {[%clk 0:00:36.5]} 23. gxf3 {[%clk 0:00:17.8]} 23... h6 {[%clk
0:00:30.5]} 24. c4 {[%clk 0:00:18.3]} 24... g5 {[%clk 0:00:21.9]} 25. h3 {[%clk
0:00:17.1]} 25... Nh5 {[%clk 0:00:22.1]} 26. Rd3 {[%clk 0:00:16.9]} 26... Be5
{[%clk 0:00:22.9]} 27. Rfd1 {[%clk 0:00:16.7]} 27... Bg3+ {[%clk 0:00:23.6]} 28.
Ke2 {[%clk 0:00:16.7]} 28... Bc7 {[%clk 0:00:24.8]} 29. b4 {[%clk 0:00:14.8]}
29... Ng3+ {[%clk 0:00:22.8]} 30. Kf2 {[%clk 0:00:14.9]} 30... Nf5 {[%clk
0:00:19.6]} 31. Bc5 {[%clk 0:00:15.9]} 31... Bg3+ {[%clk 0:00:18.7]} 32. Ke2
{[%clk 0:00:15.3]} 32... Bf4 {[%clk 0:00:19.9]} 33. Nd7 {[%clk 0:00:12.6]} 33...
Kg7 {[%clk 0:00:17.7]} 34. Nb6 {[%clk 0:00:09.1]} 34... Kg6 {[%clk 0:00:12.1]}
35. Rd8 {[%clk 0:00:08.6]} 35... Rxd8 {[%clk 0:00:09.8]} 36. Rxd8 {[%clk
0:00:10.5]} 36... Nh4 {[%clk 0:00:11.5]} 37. Rd3 {[%clk 0:00:10.1]} 37... Kf5
{[%clk 0:00:11.1]} 38. Rb3 {[%clk 0:00:10.6]} 38... h5 {[%clk 0:00:07.9]} 39. b5
{[%clk 0:00:11.3]} 39... Bxf3+ {[%clk 0:00:06.4]} 40. Rxf3 {[%clk 0:00:10.3]}
40... Nxf3 {[%clk 0:00:08.3]} 41. Kxf3 {[%clk 0:00:11.9]} 41... Bd2 {[%clk
0:00:10]} 42. Nc8 {[%clk 0:00:07.7]} 42... g4+ {[%clk 0:00:11.4]} 43. hxg4+
{[%clk 0:00:08.4]} 43... hxg4+ {[%clk 0:00:13.3]} 44. Kg2 {[%clk 0:00:09.6]}
44... axb5 {[%clk 0:00:04.9]} 45. cxb5 {[%clk 0:00:09]} 45... Bxa5 {[%clk
0:00:06]} 46. Nd6+ {[%clk 0:00:10]} 46... Ke5 {[%clk 0:00:07.9]} 47. Nxb7 {[%clk
0:00:11.4]} 47... Kd5 {[%clk 0:00:09.6]} 48. Bf2 {[%clk 0:00:08.8]} 48... Bc7
{[%clk 0:00:08.7]} 49. Bg3 {[%clk 0:00:05.2]} 49... Bxg3 {[%clk 0:00:06.6]} 50.
Kxg3 {[%clk 0:00:06.4]} 50... Kc4 {[%clk 0:00:08.3]} 51. Nd6+ {[%clk 0:00:06.8]}
51... Kc5 {[%clk 0:00:09.8]} 52. Nxf7 {[%clk 0:00:07.5]} 52... Kxb5 {[%clk
0:00:11.1]} 53. Ng5 {[%clk 0:00:08]} 53... Ka4 {[%clk 0:00:13]} 54. Nxe6 {[%clk
0:00:09]} 54... Ka3 {[%clk 0:00:14.9]} 55. Kxg4 {[%clk 0:00:10.6]} 1/2-1/2

[Event "*** Titled Tuesday Blitz"]
[Site "Chess.com"]
[Date "2019.08.06"]
[Round "6"]
[White "cancrushyou"]
[Black "TregubovP"]
[Result "1/2-1/2"]
[WhiteElo "2505"]
[BlackElo "2504"]
[TimeControl "180+2"]
[EndTime "14:24:00 PDT"]
[Termination "Game drawn - insufficient material"]

1. d4 {[%clk 0:03:01.9]} 1... Nf6 {[%clk 0:02:36.4]} 2. c4 {[%clk 0:03:01.8]}
2... e6 {[%clk 0:02:35.7]} 3. g3 {[%clk 0:03:02]} 3... d5 {[%clk 0:02:35.1]} 4.
Nf3 {[%clk 0:03:02.6]} 4... dxc4 {[%clk 0:02:34.8]} 5. Bg2 {[%clk 0:03:03]} 5...
Nc6 {[%clk 0:02:36.3]} 6. O-O {[%clk 0:03:02.1]} 6... Rb8 {[%clk 0:02:36.1]} 7.
e3 {[%clk 0:02:53.5]} 7... b5 {[%clk 0:02:35.2]} 8. a4 {[%clk 0:02:53.9]} 8...
a6 {[%clk 0:02:33]} 9. axb5 {[%clk 0:02:54.8]} 9... axb5 {[%clk 0:02:34.1]} 10.
b3 {[%clk 0:02:49.7]} 10... cxb3 {[%clk 0:02:34.2]} 11. Nfd2 {[%clk 0:02:36.2]}
11... Bb7 {[%clk 0:02:20.8]} 12. Nxb3 {[%clk 0:02:33.5]} 12... Nb4 {[%clk
0:02:21.7]} 13. Bxb7 {[%clk 0:02:27.2]} 13... Rxb7 {[%clk 0:02:22.9]} 14. Nc3
{[%clk 0:02:15.7]} 14... Be7 {[%clk 0:02:15.4]} 15. Qe2 {[%clk 0:02:07.1]} 15...
O-O {[%clk 0:02:06.3]} 16. Ba3 {[%clk 0:01:58.3]} 16... c6 {[%clk 0:01:56.3]}
17. Rfc1 {[%clk 0:01:56.9]} 17... Nbd5 {[%clk 0:01:51.3]} 18. Bxe7 {[%clk
0:01:53.6]} 18... Rxe7 {[%clk 0:01:46]} 19. Na5 {[%clk 0:01:12]} 19... Rc7
{[%clk 0:01:46.5]} 20. Nxd5 {[%clk 0:00:58.5]} 20... cxd5 {[%clk 0:01:24.9]} 21.
Qxb5 {[%clk 0:00:55.3]} 21... Rxc1+ {[%clk 0:01:23.2]} 22. Rxc1 {[%clk
0:00:57.2]} 22... Ne4 {[%clk 0:01:24]} 23. Nc6 {[%clk 0:00:53.3]} 23... Qf6
{[%clk 0:01:23.3]} 24. Qb2 {[%clk 0:00:39.5]} 24... h5 {[%clk 0:01:17.2]} 25. h4
{[%clk 0:00:39.6]} 25... Ra8 {[%clk 0:01:12.5]} 26. Ne5 {[%clk 0:00:37.4]} 26...
Qf5 {[%clk 0:01:10.5]} 27. Kg2 {[%clk 0:00:32.8]} 27... f6 {[%clk 0:01:09.7]}
28. Nf3 {[%clk 0:00:33]} 28... Kh7 {[%clk 0:01:05.6]} 29. Rc7 {[%clk 0:00:33.4]}
29... Qg6 {[%clk 0:00:56.9]} 30. Rc6 {[%clk 0:00:30.6]} 30... Qf7 {[%clk
0:00:51.3]} 31. Qc2 {[%clk 0:00:28.4]} 31... Re8 {[%clk 0:00:33.9]} 32. Nd2
{[%clk 0:00:28]} 32... Qg6 {[%clk 0:00:34.7]} 33. Nxe4 {[%clk 0:00:28.4]} 33...
Qxe4+ {[%clk 0:00:31.1]} 34. Qxe4+ {[%clk 0:00:28.9]} 34... dxe4 {[%clk
0:00:32.7]} 35. f3 {[%clk 0:00:28.1]} 35... exf3+ {[%clk 0:00:32.6]} 36. Kxf3
{[%clk 0:00:30]} 36... Kg6 {[%clk 0:00:33.9]} 37. e4 {[%clk 0:00:26.6]} 37...
Re7 {[%clk 0:00:34.4]} 38. Rc3 {[%clk 0:00:24.6]} 38... Ra7 {[%clk 0:00:33.1]}
39. Rd3 {[%clk 0:00:25.4]} 39... Kf7 {[%clk 0:00:33.1]} 40. d5 {[%clk
0:00:21.5]} 40... Rd7 {[%clk 0:00:26.4]} 41. g4 {[%clk 0:00:18.7]} 41... hxg4+
{[%clk 0:00:24]} 42. Kxg4 {[%clk 0:00:20.6]} 42... exd5 {[%clk 0:00:20.5]} 43.
exd5 {[%clk 0:00:22.5]} 43... g6 {[%clk 0:00:18.6]} 44. h5 {[%clk 0:00:23.6]}
44... gxh5+ {[%clk 0:00:18.5]} 45. Kxh5 {[%clk 0:00:24.7]} 45... Ke7 {[%clk
0:00:18.6]} 46. Kg6 {[%clk 0:00:25.5]} 46... Kd6 {[%clk 0:00:19.4]} 47. Kxf6
{[%clk 0:00:24.4]} 47... Ra7 {[%clk 0:00:19.1]} 48. Rd1 {[%clk 0:00:23.8]} 48...
Ra2 {[%clk 0:00:18.4]} 49. Rd3 {[%clk 0:00:24.6]} 49... Rf2+ {[%clk 0:00:18.8]}
50. Kg5 {[%clk 0:00:25.8]} 50... Rf1 {[%clk 0:00:19.4]} 51. Kg4 {[%clk
0:00:26.5]} 51... Rf8 {[%clk 0:00:19]} 52. Kg3 {[%clk 0:00:27.3]} 52... Rf5
{[%clk 0:00:19.7]} 53. Kg4 {[%clk 0:00:28]} 53... Rxd5 {[%clk 0:00:21.1]} 54.
Rxd5+ {[%clk 0:00:29.1]} 54... Kxd5 {[%clk 0:00:22.5]} 1/2-1/2

[Event "*** Titled Tuesday Blitz"]
[Site "Chess.com"]
[Date "2019.08.06"]
[Round "6"]
[White "tbalabayev"]
[Black "stoleriu"]
[Result "1-0"]
[WhiteElo "2391"]
[BlackElo "2499"]
[TimeControl "180+2"]
[EndTime "14:24:09 PDT"]
[Termination "tbalabayev won by checkmate"]

1. Nf3 {[%clk 0:03:01.9]} 1... Nf6 {[%clk 0:02:31.7]} 2. g3 {[%clk 0:03:02.7]}
2... e6 {[%clk 0:02:32.4]} 3. Bg2 {[%clk 0:03:04.6]} 3... b6 {[%clk 0:02:28.9]}
4. O-O {[%clk 0:03:06.5]} 4... Bb7 {[%clk 0:02:30.3]} 5. d3 {[%clk 0:03:07.8]}
5... g6 {[%clk 0:02:29.2]} 6. e4 {[%clk 0:03:08]} 6... Bg7 {[%clk 0:02:30.8]} 7.
e5 {[%clk 0:03:04.1]} 7... Ng8 {[%clk 0:02:28.9]} 8. Nbd2 {[%clk 0:02:57.6]}
8... d5 {[%clk 0:02:24.5]} 9. Re1 {[%clk 0:02:52.9]} 9... Ne7 {[%clk 0:02:25]}
10. Nf1 {[%clk 0:02:53.5]} 10... c5 {[%clk 0:02:25.8]} 11. Ne3 {[%clk
0:02:47.3]} 11... h5 {[%clk 0:02:23.1]} 12. Nf1 {[%clk 0:02:36.2]} 12... Nbc6
{[%clk 0:02:14.4]} 13. Bg5 {[%clk 0:02:36.1]} 13... Qc7 {[%clk 0:02:13.1]} 14.
Qe2 {[%clk 0:02:28]} 14... Nf5 {[%clk 0:02:13.9]} 15. c3 {[%clk 0:02:25.2]}
15... Ba6 {[%clk 0:02:14.7]} 16. h3 {[%clk 0:02:17.1]} 16... Nfe7 {[%clk
0:01:32.5]} 17. a3 {[%clk 0:02:09.5]} 17... c4 {[%clk 0:01:31.7]} 18. d4 {[%clk
0:02:06.7]} 18... Bb7 {[%clk 0:01:22.1]} 19. Qe3 {[%clk 0:01:52.8]} 19... O-O-O
{[%clk 0:01:22.3]} 20. Qf4 {[%clk 0:01:51.5]} 20... Rdf8 {[%clk 0:01:23.1]} 21.
N1d2 {[%clk 0:01:43.7]} 21... Ng8 {[%clk 0:01:13.9]} 22. Qe3 {[%clk 0:01:36.7]}
22... Nce7 {[%clk 0:01:13.9]} 23. Rac1 {[%clk 0:01:31.5]} 23... Nf5 {[%clk
0:01:14.2]} 24. Qe2 {[%clk 0:01:31.9]} 24... Kb8 {[%clk 0:01:11.1]} 25. g4
{[%clk 0:01:24]} 25... hxg4 {[%clk 0:01:10.9]} 26. hxg4 {[%clk 0:01:25.9]} 26...
Nfh6 {[%clk 0:00:56.3]} 27. Nh2 {[%clk 0:01:20.4]} 27... f6 {[%clk 0:00:57]} 28.
Bf4 {[%clk 0:01:16.7]} 28... f5 {[%clk 0:00:46.6]} 29. g5 {[%clk 0:00:54.5]}
29... Nf7 {[%clk 0:00:46.9]} 30. Nhf3 {[%clk 0:00:43.9]} 30... Rc8 {[%clk
0:00:47.4]} 31. Qe3 {[%clk 0:00:41.8]} 31... Ne7 {[%clk 0:00:47.8]} 32. Bf1
{[%clk 0:00:41.8]} 32... Bc6 {[%clk 0:00:45.7]} 33. Be2 {[%clk 0:00:41.9]} 33...
Ba4 {[%clk 0:00:46.3]} 34. Kg2 {[%clk 0:00:43]} 34... Rh7 {[%clk 0:00:44.1]} 35.
Rh1 {[%clk 0:00:43.8]} 35... Rch8 {[%clk 0:00:45.4]} 36. Rxh7 {[%clk 0:00:44.3]}
36... Rxh7 {[%clk 0:00:47.2]} 37. Nf1 {[%clk 0:00:42.2]} 37... Qd8 {[%clk
0:00:41.4]} 38. Ng3 {[%clk 0:00:41.9]} 38... Qh8 {[%clk 0:00:30]} 39. Qd2 {[%clk
0:00:41.9]} 39... Bb3 {[%clk 0:00:30.6]} 40. Rh1 {[%clk 0:00:41.7]} 40... Rxh1
{[%clk 0:00:30.8]} 41. Nxh1 {[%clk 0:00:43.6]} 41... Qh5 {[%clk 0:00:31.1]} 42.
Ng3 {[%clk 0:00:41.5]} 42... Qh8 {[%clk 0:00:25.6]} 43. Qc1 {[%clk 0:00:41.7]}
43... Nc6 {[%clk 0:00:26.2]} 44. Nf1 {[%clk 0:00:38.8]} 44... Bf8 {[%clk
0:00:27]} 45. Bg3 {[%clk 0:00:39.4]} 45... Be7 {[%clk 0:00:28]} 46. Qf4 {[%clk
0:00:37]} 46... Bc2 {[%clk 0:00:29.1]} 47. Qh4 {[%clk 0:00:36.5]} 47... Be4
{[%clk 0:00:28.2]} 48. Qxh8+ {[%clk 0:00:36.4]} 48... Nxh8 {[%clk 0:00:30]} 49.
Nd2 {[%clk 0:00:29.9]} 49... Bc2 {[%clk 0:00:21.4]} 50. Bf4 {[%clk 0:00:26.3]}
50... Nd8 {[%clk 0:00:21.6]} 51. Nh4 {[%clk 0:00:25.8]} 51... Ndf7 {[%clk
0:00:22.3]} 52. Nhf3 {[%clk 0:00:19.1]} 52... Be4 {[%clk 0:00:22.5]} 53. Kg3
{[%clk 0:00:20.6]} 53... Kc7 {[%clk 0:00:21.4]} 54. Kh4 {[%clk 0:00:21.5]} 54...
Kc6 {[%clk 0:00:22.2]} 55. Ne1 {[%clk 0:00:22.7]} 55... Nd8 {[%clk 0:00:12.9]}
56. f3 {[%clk 0:00:23.4]} 56... Bd3 {[%clk 0:00:14]} 57. Bxd3 {[%clk 0:00:24]}
57... cxd3 {[%clk 0:00:15.9]} 58. Nxd3 {[%clk 0:00:25.2]} 58... Nhf7 {[%clk
0:00:17.3]} 59. Nb4+ {[%clk 0:00:25.7]} 59... Kb5 {[%clk 0:00:18.6]} 60. b3
{[%clk 0:00:25.9]} 60... a5 {[%clk 0:00:19.9]} 61. a4# {[%clk 0:00:27.2]} 1-0

[Event "*** Titled Tuesday Blitz"]
[Site "Chess.com"]
[Date "2019.08.06"]
[Round "6"]
[White "smshk35"]
[Black "2165149677570"]
[Result "0-1"]
[WhiteElo "2335"]
[BlackElo "2293"]
[TimeControl "180+2"]
[EndTime "14:24:10 PDT"]
[Termination "2165149677570 won by resignation"]

1. e4 {[%clk 0:03:01.9]} 1... c5 {[%clk 0:03:00.1]} 2. Nf3 {[%clk 0:03:02.7]}
2... d6 {[%clk 0:02:59.6]} 3. d4 {[%clk 0:03:02.3]} 3... cxd4 {[%clk 0:03:01.5]}
4. Qxd4 {[%clk 0:03:03.4]} 4... Nc6 {[%clk 0:03:02]} 5. Bb5 {[%clk 0:03:03.8]}
5... Bd7 {[%clk 0:03:03.4]} 6. Bxc6 {[%clk 0:03:04.9]} 6... bxc6 {[%clk
0:03:05.3]} 7. c4 {[%clk 0:03:00.2]} 7... e5 {[%clk 0:03:06.3]} 8. Qd3 {[%clk
0:02:58.8]} 8... Qc7 {[%clk 0:03:07.7]} 9. Nc3 {[%clk 0:02:59.4]} 9... h6 {[%clk
0:03:07.9]} 10. O-O {[%clk 0:03:00.3]} 10... Nf6 {[%clk 0:03:09]} 11. Rd1 {[%clk
0:02:56.3]} 11... Be7 {[%clk 0:03:08.7]} 12. b3 {[%clk 0:02:54.7]} 12... Be6
{[%clk 0:03:05.3]} 13. Ba3 {[%clk 0:02:50.2]} 13... Rd8 {[%clk 0:03:06]} 14.
Rac1 {[%clk 0:02:47.5]} 14... O-O {[%clk 0:02:58.5]} 15. Bb2 {[%clk 0:02:46.4]}
15... Qa5 {[%clk 0:02:29.2]} 16. Qe2 {[%clk 0:02:36.8]} 16... Nh5 {[%clk
0:02:19.3]} 17. Na4 {[%clk 0:02:24.9]} 17... Nf4 {[%clk 0:02:16.3]} 18. Qd2
{[%clk 0:02:18.7]} 18... Qxd2 {[%clk 0:01:54.6]} 19. Rxd2 {[%clk 0:02:19.9]}
19... Bg4 {[%clk 0:01:56.1]} 20. c5 {[%clk 0:02:08.8]} 20... Bxf3 {[%clk
0:01:53.7]} 21. gxf3 {[%clk 0:02:08.5]} 21... Nh3+ {[%clk 0:00:59.7]} 22. Kf1
{[%clk 0:02:01.3]} 22... Bg5 {[%clk 0:01:00.3]} 23. Rxd6 {[%clk 0:01:52.2]}
23... Bxc1 {[%clk 0:00:57.8]} 24. Bxc1 {[%clk 0:01:52.9]} 24... Rxd6 {[%clk
0:00:48.1]} 25. cxd6 {[%clk 0:01:54.8]} 25... Rd8 {[%clk 0:00:49.4]} 26. Ba3
{[%clk 0:01:55.3]} 26... Nf4 {[%clk 0:00:38.8]} 27. Nb2 {[%clk 0:01:53.4]} 27...
Ne6 {[%clk 0:00:29.9]} 28. Nc4 {[%clk 0:01:40]} 28... c5 {[%clk 0:00:26.6]} 29.
Nxe5 {[%clk 0:01:34.1]} 29... Rxd6 {[%clk 0:00:27]} 30. Ke2 {[%clk 0:01:30]}
30... Nd4+ {[%clk 0:00:25.7]} 31. Kf1 {[%clk 0:01:29.8]} 31... Ra6 {[%clk
0:00:18.5]} 32. Bxc5 {[%clk 0:01:28.9]} 32... Ne6 {[%clk 0:00:17.1]} 33. Be3
{[%clk 0:01:06.9]} 33... Rxa2 {[%clk 0:00:17.4]} 34. Nc6 {[%clk 0:01:07.6]}
34... a6 {[%clk 0:00:15.9]} 35. Kg2 {[%clk 0:00:53.6]} 35... g5 {[%clk
0:00:10.5]} 36. Kg3 {[%clk 0:00:52.3]} 36... Ra3 {[%clk 0:00:12]} 37. b4 {[%clk
0:00:38.7]} 37... Nc7 {[%clk 0:00:09.4]} 38. Kg4 {[%clk 0:00:36.5]} 38... Nb5
{[%clk 0:00:08.9]} 39. Kh5 {[%clk 0:00:31.7]} 39... Kh7 {[%clk 0:00:09.7]} 40.
Ne5 {[%clk 0:00:27.2]} 40... Ra4 {[%clk 0:00:09.8]} 41. Bc5 {[%clk 0:00:12.6]}
41... f6 {[%clk 0:00:07.8]} 42. Nf7 {[%clk 0:00:13.1]} 42... Nc3 {[%clk
0:00:08.1]} 43. Nxh6 {[%clk 0:00:12.9]} 43... Na2 {[%clk 0:00:09.5]} 44. Ng4
{[%clk 0:00:13.3]} 44... Nxb4 {[%clk 0:00:10.1]} 45. Nxf6+ {[%clk 0:00:14.7]}
45... Kg7 {[%clk 0:00:11.3]} 46. Kxg5 {[%clk 0:00:15.6]} 46... Nd3 {[%clk
0:00:11.4]} 47. Bd6 {[%clk 0:00:14.4]} 47... Ra5+ {[%clk 0:00:12.7]} 48. e5
{[%clk 0:00:08.6]} 48... Nxe5 {[%clk 0:00:14.2]} 49. Nh5+ {[%clk 0:00:09.4]}
49... Kg8 {[%clk 0:00:14.2]} 50. Bxe5 {[%clk 0:00:03.1]} 50... Rxe5+ {[%clk
0:00:14.5]} 51. Kg4 {[%clk 0:00:04.6]} 51... Rxh5 {[%clk 0:00:15.1]} 52. Kxh5
{[%clk 0:00:05.2]} 52... a5 {[%clk 0:00:17]} 53. f4 {[%clk 0:00:05.3]} 53... a4
{[%clk 0:00:18.7]} 54. f5 {[%clk 0:00:06.8]} 54... a3 {[%clk 0:00:20.4]} 55. f6
{[%clk 0:00:08.4]} 55... a2 {[%clk 0:00:22]} 56. Kg6 {[%clk 0:00:09.8]} 56...
a1=Q {[%clk 0:00:23.1]} 57. f7+ {[%clk 0:00:11.3]} 0-1